bitfinex/quotes_BTCUSD_20250428
["timestamp","ask_amount","ask_price","bid_price","bid_amount"]
[1745799619294,0.5022338,93632.0,93631.0,0.10534959]
[1745799619697,0.5022338,93632.0,93631.0,0.08781324]
[1745799619898,0.5012338,93632.0,93631.0,0.13397444]
[1745799620548,0.5012338,93632.0,93631.0,0.50777322]
[1745799620678,0.5012338,93632.0,93631.0,0.46161202]
[1745799625638,0.0684338,93632.0,93631.0,0.56850216]
[1745799625972,0.0684338,93632.0,93631.0,0.57302251]
[1745799632238,0.01323286,93641.0,93632.0,0.01454085]
[1745799632441,0.01323286,93641.0,93635.0,0.01454085]
[1745799632595,0.01323286,93641.0,93637.0,0.01454085]
[1745799632801,0.0018488,93642.0,93639.0,0.01454085]
[1745799633027,0.0018488,93642.0,93641.0,0.01454085]
[1745799633228,0.0018488,93642.0,93641.0,0.13357409]
[1745799633576,0.0018488,93642.0,93641.0,0.11903324]
[1745799633964,0.0038488,93642.0,93641.0,0.11903324]
[1745799634385,0.0018488,93642.0,93641.0,0.11903324]
[1745799634594,0.0038488,93642.0,93641.0,0.11903324]
[1745799634800,0.0058488,93642.0,93641.0,0.11903324]
[1745799635432,0.0058488,93642.0,93641.0,0.13357409]
[1745799636647,0.0038488,93642.0,93641.0,0.13357409]
[1745799636900,0.0028488,93642.0,93641.0,0.13357409]
[1745799637523,0.0018488,93642.0,93641.0,0.13357409]
[1745799637730,0.0028488,93642.0,93641.0,0.13357409]
[1745799638225,0.0028488,93642.0,93641.0,0.54417409]
[1745799638629,0.0018488,93642.0,93641.0,0.54417409]
[1745799639378,0.0018488,93642.0,93641.0,0.58514446]
[1745799639577,0.0018488,93642.0,93641.0,0.58614446]
[1745799639816,0.0018488,93642.0,93641.0,0.59528207]
[1745799640295,0.0018488,93642.0,93641.0,0.59328207]
[1745799640742,0.0018488,93642.0,93641.0,0.59728207]
[1745799643224,0.0018488,93642.0,93641.0,0.59828207]
[1745799643425,0.0008482,93660.0,93641.0,0.59828207]
[1745799643628,0.0458488,93667.0,93641.0,0.59828207]
[1745799643629,0.0008488,93667.0,93659.0,0.01454085]
[1745799643856,0.00098661,93665.0,93661.0,0.12143099]
[1745799644062,0.00098661,93665.0,93663.0,0.01454085]
[1745799644338,0.0496,93681.0,93665.0,0.01454085]
[1745799644543,0.0496,93688.0,93677.0,0.01454085]
[1745799644745,0.06501543,93684.0,93677.0,0.01454085]
[1745799644871,0.06501543,93684.0,93676.0,0.01454085]
[1745799645058,0.00743723,93679.0,93676.0,0.01454085]
[1745799645259,0.00743723,93679.0,93678.0,0.01454085]
[1745799645459,0.00743723,93679.0,93678.0,0.14449009]
[1745799645735,0.00743723,93679.0,93678.0,0.12143099]
[1745799646859,0.06501543,93684.0,93683.0,0.01454085]
[1745799647071,0.06501543,93684.0,93683.0,0.12143099]
[1745799647278,0.06501543,93684.0,93683.0,0.10689014]
[1745799647823,0.06501543,93684.0,93683.0,0.17169939]
[1745799648425,0.11162206,93684.0,93683.0,0.10689014]
[1745799648708,0.11362206,93684.0,93683.0,0.10689014]
[1745799649884,0.0487,93684.0,93683.0,0.10689014]
[1745799652847,0.0487,93684.0,93683.0,0.49796211]
[1745799655692,1.868515,93684.0,93683.0,0.50019197]
[1745799655900,2.660402,93684.0,93683.0,0.50019197]
[1745799656098,1.86531,93684.0,93683.0,0.49518395]
[1745799656299,0.3907,93684.0,93683.0,0.49518395]
[1745799656478,1.944026,93684.0,93683.0,0.49518395]
[1745799657033,1.885742,93684.0,93683.0,0.48516776]
[1745799657486,1.287366,93684.0,93683.0,0.48516776]
[1745799658045,1.285366,93684.0,93683.0,0.48516776]
[1745799658205,1.288366,93684.0,93683.0,0.48516776]
[1745799659028,1.29578888,93684.0,93683.0,0.48516776]
[1745799659998,1.29278888,93684.0,93683.0,0.48516776]
[1745799660321,1.29478888,93684.0,93683.0,0.48516776]
[1745799662735,1.29478888,93684.0,93683.0,0.37604776]
[1745799662932,1.29478888,93684.0,93683.0,0.48508776]
[1745799663374,1.29478888,93684.0,93683.0,0.47507182]
[1745799665278,1.35201851,93684.0,93683.0,0.36603182]
[1745799665455,0.01002963,93681.0,93680.0,0.10904]
[1745799665686,4.53046557,93681.0,93680.0,0.10904]
[1745799665891,0.0955,93671.0,93670.0,0.36603182]
[1745799666007,4.250667,93671.0,93670.0,0.47507182]
[1745799666207,4.304085,93671.0,93670.0,0.47507182]
[1745799666408,4.31311463,93671.0,93670.0,0.47507182]
[1745799666627,4.32053751,93671.0,93670.0,0.47507182]
[1745799666848,0.45195251,93671.0,93670.0,0.47507182]
[1745799667240,4.22253751,93671.0,93670.0,0.47507182]
[1745799667596,2.85523651,93671.0,93670.0,0.47507182]
[1745799667714,0.74897688,93671.0,93670.0,0.522579]
[1745799667910,0.59851188,93671.0,93670.0,0.522579]
[1745799668314,0.59951188,93671.0,93670.0,0.47507182]
[1745799668511,0.59951188,93671.0,93670.0,0.58211376]
[1745799668512,0.01242288,93671.0,93670.0,0.58211376]
[1745799669048,1.09588488,93671.0,93670.0,0.58211376]
[1745799669253,0.75729488,93671.0,93670.0,0.58211376]
[1745799669459,0.35442288,93671.0,93670.0,0.58211376]
[1745799670066,0.34942288,93671.0,93670.0,0.58211376]
[1745799670394,0.34942288,93671.0,93670.0,0.47522362]
[1745799670395,1.58394788,93671.0,93670.0,0.47522362]
[1745799670565,1.97406788,93671.0,93670.0,0.47522362]
[1745799670964,1.89951288,93671.0,93670.0,0.47522362]
[1745799671166,1.71091288,93671.0,93670.0,0.47522362]
[1745799671372,1.54388588,93671.0,93670.0,0.47507182]
[1745799671916,1.54488588,93671.0,93670.0,0.4700632]
[1745799672114,1.45312288,93671.0,93670.0,0.4700632]
[1745799672542,0.54687888,93671.0,93670.0,0.4700632]
[1745799673322,0.54787888,93671.0,93670.0,0.4700632]
[1745799673502,0.59537888,93671.0,93670.0,0.4700632]
[1745799675203,0.59537888,93671.0,93670.0,0.3610232]
[1745799675414,0.60440851,93671.0,93670.0,0.3610232]
[1745799676023,0.59437888,93671.0,93670.0,0.3610232]
[1745799676238,0.16027888,93671.0,93670.0,0.40802952]
[1745799676397,0.18925588,93671.0,93670.0,0.40051674]
[1745799676759,0.62074088,93671.0,93670.0,0.35351042]
[1745799676964,0.81808088,93671.0,93670.0,0.35351042]
[1745799677256,0.76258088,93671.0,93670.0,0.35351042]
[1745799677615,0.76258088,93671.0,93670.0,0.34349353]
[1745799680596,0.64113088,93671.0,93670.0,0.34349353]
[1745799680799,0.34942288,93671.0,93670.0,0.34364533]
[1745799680957,0.50685688,93671.0,93670.0,0.34364533]
[1745799682854,0.34942288,93671.0,93670.0,0.34364533]
[1745799683235,0.34942288,93671.0,93670.0,0.45053547]
[1745799684013,0.34942288,93671.0,93670.0,0.44051866]
[1745799685133,0.34942288,93671.0,93670.0,0.33362852]
[1745799687166,0.39882288,93671.0,93670.0,0.33362852]
[1745799687391,0.39882288,93671.0,93670.0,0.43766015]
[1745799687588,0.39882288,93671.0,93670.0,0.4301476]
[1745799688046,0.39982288,93671.0,93670.0,0.1091918]
[1745799688399,1.15619988,93671.0,93670.0,0.1091918]
[1745799688600,1.33515388,93671.0,93670.0,0.1091918]
[1745799689347,1.33415388,93671.0,93670.0,0.1091918]
[1745799689674,0.34942288,93671.0,93670.0,0.12011098]
[1745799689822,0.34942288,93671.0,93670.0,0.1091918]
[1745799690025,0.34942288,93671.0,93670.0,0.09917458]
[1745799693794,0.34942288,93671.0,93670.0,0.42013038]
[1745799695235,0.34942288,93671.0,93670.0,0.3209558]
[1745799695448,0.34942288,93671.0,93670.0,0.4299558]
[1745799696220,0.34942288,93671.0,93670.0,0.41993939]
[1745799700532,0.34942288,93671.0,93670.0,0.41989939]
[1745799702682,0.34942288,93671.0,93670.0,0.40487557]
[1745799704418,0.34942288,93671.0,93670.0,0.51176571]
[1745799704624,0.34942288,93671.0,93670.0,0.55225327]
[1745799704846,0.34942288,93671.0,93670.0,0.51176571]
[1745799706499,0.34942288,93671.0,93670.0,0.40487557]
[1745799706913,0.34942288,93671.0,93670.0,0.29591557]
[1745799707126,0.34942288,93671.0,93670.0,0.40487557]
[1745799707729,0.34942288,93671.0,93670.0,0.39736339]
[1745799708855,0.34942288,93671.0,93670.0,0.38734715]
[1745799715123,0.44342288,93671.0,93670.0,0.38734715]
[1745799715297,1.74712788,93671.0,93670.0,0.27838715]
[1745799715548,1.46880088,93671.0,93670.0,0.377331]
[1745799715753,1.35330388,93671.0,93670.0,0.377331]
[1745799717714,1.35330388,93671.0,93670.0,0.36481014]
[1745799720544,1.06753361,93671.0,93670.0,0.36481014]
[1745799720777,0.96515261,93671.0,93670.0,0.36481014]
[1745799721647,0.96515261,93671.0,93670.0,0.10896]
[1745799721648,0.95528251,93671.0,93670.0,0.10896]
[1745799721882,0.001,93661.0,93649.0,0.25585014]
[1745799722089,0.34,93658.0,93650.0,0.21585014]
[1745799722244,0.00266942,93657.0,93650.0,0.21585014]
[1745799722455,0.0979,93652.0,93651.0,0.10888]
[1745799722648,0.44692963,93652.0,93641.0,0.25585014]
[1745799722851,0.001,93644.0,93642.0,0.10888]
[1745799723030,0.973084,93643.0,93642.0,0.10888]
[1745799723547,0.98050688,93643.0,93642.0,0.10888]
[1745799724371,0.98053226,93643.0,93642.0,0.11088]
[1745799724627,0.34744826,93643.0,93642.0,0.11088]
[1745799724841,0.34744826,93643.0,93642.0,0.11188]
[1745799725475,0.58857426,93643.0,93642.0,0.11188]
[1745799726802,0.57530526,93643.0,93642.0,0.11188]
[1745799727006,0.34744826,93643.0,93642.0,0.11188]
[1745799727471,0.34744826,93643.0,93642.0,0.21877014]
[1745799727679,0.34744826,93643.0,93642.0,0.23331099]
[1745799728669,0.34744826,93643.0,93642.0,0.21877014]
[1745799729016,0.34744826,93643.0,93642.0,0.10989014]
[1745799729219,0.34744826,93643.0,93642.0,0.21877014]
[1745799729640,0.34744826,93643.0,93642.0,0.20875159]
[1745799730615,1.54015226,93643.0,93642.0,0.20875159]
[1745799730756,1.37089326,93643.0,93642.0,0.20875159]
[1745799730963,0.39244826,93643.0,93642.0,0.20875159]
[1745799731421,0.39244826,93643.0,93642.0,0.09987159]
[1745799731571,0.39244826,93643.0,93642.0,0.10888]
[1745799731779,0.39244826,93643.0,93642.0,0.10988]
[1745799732178,0.34744826,93643.0,93642.0,0.10988]
[1745799734709,0.5006967,93643.0,93642.0,0.10988]
[1745799734885,3.08660287,93643.0,93642.0,0.10988]
[1745799735087,2.60653987,93643.0,93642.0,0.10487001]
[1745799735289,2.57665987,93643.0,93642.0,0.10387001]
[1745799735817,2.57665987,93643.0,93642.0,0.09385002]
[1745799736431,2.57765987,93643.0,93642.0,0.09385002]
[1745799736625,2.57865987,93643.0,93642.0,0.09385002]
[1745799736773,2.24277287,93643.0,93642.0,0.09385002]
[1745799736969,2.24377287,93643.0,93642.0,0.09385002]
[1745799737707,2.24377287,93643.0,93641.0,0.25585014]
[1745799737708,0.34,93642.0,93641.0,0.25585014]
[1745799737920,0.048,93641.0,93638.0,0.10892]
[1745799738104,4.84737071,93641.0,93638.0,0.10892]
[1745799738507,4.86452424,93641.0,93638.0,0.10892]
[1745799738709,5.32410024,93641.0,93634.0,0.10892]
[1745799738837,5.18379924,93641.0,93634.0,0.10892]
[1745799739043,4.60696621,93641.0,93634.0,0.10892]
[1745799739279,0.047,93636.0,93634.0,0.10892]
[1745799739441,3.03041919,93635.0,93634.0,0.10892]
[1745799739685,3.027681,93635.0,93634.0,0.10892]
[1745799739953,2.77203661,93635.0,93634.0,0.10892]
[1745799740337,2.77948487,93635.0,93634.0,0.10892]
[1745799740549,2.78048487,93635.0,93634.0,0.10892]
[1745799740790,2.58219787,93635.0,93634.0,0.10892]
[1745799741022,2.00337487,93635.0,93634.0,0.10892]
[1745799741227,0.98514387,93635.0,93634.0,0.10892]
[1745799741426,0.37027187,93635.0,93634.0,0.10892]
[1745799741539,0.03027187,93635.0,93634.0,0.48620113]
[1745799741739,0.03027187,93635.0,93634.0,0.53340113]
[1745799742368,0.03027187,93635.0,93634.0,0.52338006]
[1745799742816,0.03027187,93635.0,93634.0,0.57576046]
[1745799743016,0.02927187,93635.0,93634.0,0.57576046]
[1745799743217,0.02727187,93635.0,93634.0,0.57876046]
[1745799743419,0.02727187,93635.0,93634.0,0.57576046]
[1745799743610,0.02727187,93635.0,93634.0,0.57976046]
[1745799743816,0.02727187,93635.0,93634.0,0.53238006]
[1745799744113,6.871e-05,93641.0,93638.0,0.01454085]
[1745799744250,6.871e-05,93641.0,93640.0,0.01454085]
[1745799744455,6.871e-05,93641.0,93640.0,0.12143099]
[1745799745461,6.871e-05,93641.0,93640.0,0.20850136]
[1745799745663,6.871e-05,93641.0,93640.0,0.26912132]
[1745799746306,6.871e-05,93641.0,93640.0,0.27912132]
[1745799749640,0.18992897,93650.0,93648.0,0.01454085]
[1745799749842,0.34,93657.0,93649.0,0.12143099]
[1745799750003,0.34,93657.0,93651.0,0.01454085]
[1745799750206,0.34,93657.0,93653.0,0.01454085]
[1745799750427,0.34,93657.0,93655.0,0.01454085]
[1745799750627,0.34,93657.0,93656.0,0.23031099]
[1745799751440,0.34,93665.0,93657.0,0.01454085]
[1745799751641,0.34,93665.0,93659.0,0.01454085]
[1745799751844,0.34,93665.0,93660.0,0.10689014]
[1745799752639,0.0486,93662.0,93656.0,0.10888]
[1745799752853,1.862415,93661.0,93657.0,0.10689014]
[1745799753027,0.001,93654.0,93653.0,0.10876]
[1745799753237,0.001,93652.0,93640.0,0.00113801]
[1745799753411,0.001,93645.0,93641.0,0.21565014]
[1745799753611,0.34,93643.0,93641.0,0.10876]
[1745799753812,1.600359,93642.0,93641.0,0.10876]
[1745799754138,1.6102673,93642.0,93641.0,0.10876]
[1745799754340,1.6112673,93642.0,93641.0,0.10074447]
[1745799754493,0.34,93641.0,93640.0,0.00113801]
[1745799754729,1.33468,93641.0,93640.0,0.10989801]
[1745799754936,0.34,93641.0,93640.0,0.10989801]
[1745799755323,0.6710313,93641.0,93640.0,0.10989801]
[1745799756198,0.67846405,93641.0,93640.0,0.10989801]
[1745799756550,0.69928335,93641.0,93640.0,0.10989801]
[1745799756748,0.53619635,93641.0,93640.0,0.10989801]
[1745799757400,0.58579635,93641.0,93640.0,0.00113801]
[1745799757604,0.63439635,93641.0,93640.0,0.00113801]
[1745799757777,0.64342598,93641.0,93640.0,0.00113801]
[1745799758318,0.64242598,93641.0,93640.0,0.00113801]
[1745799758492,0.001,93630.0,93613.0,0.00962021]
[1745799758705,0.34,93621.0,93612.0,0.22750956]
[1745799759076,0.34,93621.0,93613.0,0.10876]
[1745799759280,0.34,93621.0,93614.0,0.10689014]
[1745799759643,0.0198193,93620.0,93614.0,0.10689014]
[1745799759833,0.02725205,93620.0,93614.0,0.10689014]
[1745799760055,0.0099083,93619.0,93614.0,0.10689014]
[1745799760252,0.0099083,93619.0,93615.0,0.10876]
[1745799760479,0.00743275,93618.0,93616.0,0.10689014]
[1745799760609,0.02725205,93618.0,93616.0,0.10689014]
[1745799761205,0.0198193,93617.0,93616.0,0.10689014]
[1745799761399,0.03716035,93617.0,93616.0,0.10689014]
[1745799761599,0.03716035,93617.0,93614.0,0.002]
[1745799761600,0.34,93616.0,93614.0,0.002]
[1745799761804,0.001,93612.0,93611.0,0.004]
[1745799762019,1.88189624,93612.0,93611.0,0.004]
[1745799762230,1.36555135,93612.0,93611.0,0.004]
[1745799762445,1.06763435,93612.0,93611.0,0.004]
[1745799762644,0.76919935,93612.0,93611.0,0.004]
[1745799763047,0.34,93611.0,93599.0,0.10365329]
[1745799763292,0.34,93609.0,93602.0,0.00013803]
[1745799763515,0.34,93609.0,93603.0,0.10689014]
[1745799763516,0.34,93607.0,93603.0,0.10689014]
[1745799763927,0.00743275,93606.0,93603.0,0.10689014]
[1745799764072,0.00743275,93606.0,93604.0,0.01454085]
[1745799764271,0.0198193,93605.0,93604.0,0.01454085]
[1745799764493,0.0297276,93605.0,93604.0,0.23572336]
[1745799764902,0.03716035,93605.0,93604.0,0.23572336]
[1745799765306,0.03716035,93605.0,93604.0,0.22389014]
[1745799765711,0.03716035,93605.0,93604.0,0.22489014]
[1745799765907,0.03714183,93605.0,93604.0,0.22489014]
[1745799766164,0.01732253,93605.0,93604.0,0.4523997]
[1745799766281,0.03709025,93605.0,93604.0,0.4533997]
[1745799766483,0.03709025,93605.0,93604.0,0.46694055]
[1745799766720,0.03709025,93605.0,93604.0,0.39564841]
[1745799766937,0.03709025,93605.0,93604.0,0.46594055]
[1745799767367,0.03709025,93605.0,93604.0,0.47646055]
[1745799767710,0.03709025,93605.0,93604.0,0.47846055]
[1745799768097,0.03709025,93605.0,93604.0,0.34894055]
[1745799768297,0.03709025,93605.0,93604.0,0.47846055]
[1745799768817,0.03709025,93605.0,93604.0,0.48046055]
[1745799769020,0.03709025,93605.0,93604.0,0.43349407]
[1745799769352,0.03709025,93605.0,93604.0,0.43549407]
[1745799769963,0.03709025,93605.0,93604.0,0.43749407]
[1745799770750,0.03709025,93605.0,93604.0,0.43549407]
[1745799771603,0.03709025,93605.0,93604.0,0.43749407]
[1745799771758,0.03709025,93605.0,93604.0,0.48125728]
[1745799772279,0.04986503,93617.0,93610.0,0.04097037]
[1745799772456,0.04986503,93617.0,93616.0,0.12143099]
[1745799772856,0.04986503,93617.0,93616.0,0.24895099]
[1745799773058,0.04986503,93617.0,93616.0,0.27794313]
[1745799774092,0.0291329,93618.0,93617.0,0.01454085]
[1745799774295,0.34,93638.0,93618.0,0.01454085]
[1745799774502,0.34,93638.0,93616.0,0.24428251]
[1745799774503,0.34,93638.0,93631.0,0.01454085]
[1745799774667,0.34,93638.0,93633.0,0.01454085]
[1745799774867,0.34,93638.0,93635.0,0.01454085]
[1745799775085,0.34,93638.0,93637.0,0.01454085]
[1745799775292,0.06582454,93641.0,93637.0,0.12143099]
[1745799775541,0.06582454,93641.0,93639.0,0.01454085]
[1745799775739,0.06582454,93641.0,93640.0,0.12143099]
[1745799777226,0.06682454,93641.0,93640.0,0.12143099]
[1745799777410,0.002,93641.0,93640.0,0.12143099]
[1745799777610,0.001,93641.0,93640.0,0.12143099]
[1745799777811,0.002,93641.0,93640.0,0.12143099]
[1745799778878,0.002,93641.0,93640.0,0.3118503]
[1745799780153,0.002,93641.0,93640.0,0.33769195]
[1745799780560,0.002,93641.0,93640.0,0.29196607]
[1745799780763,3.58968063,93641.0,93640.0,0.18941931]
[1745799780928,3.58968063,93641.0,93585.0,0.001]
[1745799780929,0.001,93628.0,93619.0,0.13232]
[1745799781133,0.34,93625.0,93620.0,0.18941931]
[1745799781335,0.001,93621.0,93620.0,0.31372181]
[1745799781531,0.869581,93621.0,93620.0,0.31372181]
[1745799781811,0.993865,93621.0,93620.0,0.31372181]
[1745799781945,0.993865,93621.0,93620.0,0.30089331]
[1745799782304,0.962399,93621.0,93620.0,0.13232]
[1745799782506,1.01852863,93621.0,93620.0,0.13232]
[1745799782930,1.06582863,93621.0,93620.0,0.07048621]
[1745799783306,0.34,93620.0,93616.0,0.00013803]
[1745799783509,0.00267088,93619.0,93616.0,0.00013803]
[1745799783714,0.01002963,93606.0,93605.0,0.13232]
[1745799783856,0.35002963,93606.0,93605.0,0.13232]
[1745799784525,0.36982545,93606.0,93605.0,0.13232]
[1745799784725,0.37972346,93606.0,93605.0,0.13232]
[1745799784986,0.38372346,93606.0,93605.0,0.13232]
[1745799785196,0.39114697,93606.0,93605.0,0.13232]
[1745799785754,2.68744597,93606.0,93605.0,0.13232]
[1745799785950,2.79433611,93606.0,93605.0,0.13232]
[1745799786151,2.73614597,93606.0,93605.0,0.13232]
[1745799786676,2.73148921,93606.0,93605.0,0.13232]
[1745799788852,2.83837935,93606.0,93605.0,0.13232]
[1745799789512,2.83837935,93606.0,93593.0,0.000424]
[1745799789513,0.34,93605.0,93593.0,0.000424]
[1745799789718,0.05317287,93594.0,93593.0,0.000424]
[1745799789924,0.00537287,93578.0,93577.0,0.15001796]
[1745799790101,0.00537287,93577.0,93560.0,0.13548828]
[1745799790301,0.36516869,93577.0,93560.0,0.13548828]
[1745799790502,0.00537287,93572.0,93571.0,0.0035239]
[1745799790711,0.34537287,93572.0,93571.0,0.0035239]
[1745799790909,0.34,93571.0,93560.0,0.13082172]
[1745799791108,0.34,93569.0,93561.0,9.343e-05]
[1745799791457,0.00537287,93565.0,93561.0,0.12338176]
[1745799791600,0.34,93563.0,93561.0,0.12338176]
[1745799791803,0.759891,93562.0,93561.0,0.12338176]
[1745799792006,0.77968682,93562.0,93561.0,0.14888696]
[1745799792210,0.77968682,93562.0,93561.0,0.11054482]
[1745799792211,0.71559933,93562.0,93561.0,0.11054482]
[1745799792420,0.58911834,93562.0,93561.0,0.11054482]
[1745799793271,0.58911834,93562.0,93561.0,0.10774482]
[1745799794052,0.51609534,93562.0,93561.0,0.10774482]
[1745799794254,0.37711734,93562.0,93561.0,0.21463496]
[1745799794609,0.74589134,93562.0,93561.0,0.21463496]
[1745799794815,0.74589134,93562.0,93561.0,0.10774482]
[1745799795470,0.79896421,93562.0,93561.0,0.10474482]
[1745799795669,0.79877411,93562.0,93561.0,0.10474482]
[1745799796048,0.88360152,93562.0,93561.0,0.10474482]
[1745799796244,0.79877411,93562.0,93561.0,0.09939594]
[1745799796802,0.79877411,93562.0,93561.0,0.08836673]
[1745799797027,0.79977411,93562.0,93561.0,0.08836673]
[1745799797293,0.00537287,93561.0,93560.0,0.13082172]
[1745799797527,0.00537287,93561.0,93548.0,0.0004243]
[1745799797528,0.00537287,93556.0,93548.0,0.0004243]
[1745799797779,3.67395544,93556.0,93548.0,0.0004243]
[1745799797968,3.29306738,93556.0,93538.0,0.1884]
[1745799798083,0.00537287,93549.0,93548.0,0.00011786]
[1745799798312,0.34537287,93549.0,93548.0,0.00011786]
[1745799798504,0.35527088,93549.0,93548.0,0.00011786]
[1745799798731,0.4248667,93549.0,93548.0,0.00011786]
[1745799798932,0.43229021,93549.0,93548.0,0.00011786]
[1745799799336,3.89543221,93549.0,93548.0,0.00011786]
[1745799799738,3.85110321,93549.0,93548.0,0.00011786]
[1745799800024,3.78747721,93549.0,93548.0,0.00011786]
[1745799800216,3.79147721,93549.0,93548.0,0.00011786]
[1745799800645,2.87454721,93549.0,93548.0,0.00011786]
[1745799800882,0.00537287,93547.0,93538.0,0.1884]
[1745799801111,2.90486341,93547.0,93538.0,0.1884]
[1745799801283,2.74880653,93547.0,93538.0,0.1884]
[1745799801610,0.00537287,93536.0,93535.0,0.001]
[1745799801754,3.04793069,93536.0,93535.0,0.001]
[1745799801964,0.00537287,93509.0,93496.0,0.27737431]
[1745799802202,0.00537287,93509.0,93496.0,0.27744817]
[1745799802203,0.34,93505.0,93496.0,0.27744817]
[1745799802350,0.00537287,93500.0,93496.0,0.26942133]
[1745799802552,0.34,93498.0,93497.0,0.08547967]
[1745799802796,1.238414,93498.0,93496.0,0.26942133]
[1745799802999,1.08940273,93497.0,93496.0,0.26942133]
[1745799803325,1.0005842,93497.0,93496.0,0.26942133]
[1745799803667,1.01048221,93497.0,93496.0,0.26942133]
[1745799804054,1.01048221,93497.0,93496.0,0.25938598]
[1745799804259,0.57447021,93497.0,93496.0,0.26638598]
[1745799804459,0.57447021,93497.0,93496.0,0.28071991]
[1745799804708,0.57447021,93497.0,93496.0,0.2403006]
[1745799805345,0.55467439,93497.0,93496.0,0.2403006]
[1745799805540,0.55367439,93497.0,93496.0,0.2353006]
[1745799806413,0.55367439,93497.0,93496.0,0.2363006]
[1745799807020,0.54830152,93497.0,93496.0,0.2353006]
[1745799807217,0.55367439,93497.0,93496.0,0.2363006]
[1745799807899,0.20830152,93497.0,93496.0,0.3672208]
[1745799808103,0.01732152,93497.0,93496.0,0.34319074]
[1745799808305,0.01732152,93497.0,93496.0,0.47401246]
[1745799808306,0.00742351,93497.0,93496.0,0.47401246]
[1745799811619,0.00742351,93497.0,93496.0,0.47301246]
[1745799812019,0.00742351,93497.0,93496.0,0.48001246]
[1745799815001,0.00742351,93497.0,93496.0,0.49455331]
[1745799815249,0.00742351,93497.0,93496.0,0.49555331]
[1745799815988,0.00742351,93497.0,93496.0,0.49155331]
[1745799816194,0.00742351,93497.0,93496.0,0.5114105]
[1745799816410,0.00742351,93497.0,93496.0,0.5164105]
[1745799816853,0.00742351,93497.0,93496.0,0.49355331]
[1745799817071,0.00742351,93497.0,93496.0,0.49855331]
[1745799817397,0.00742351,93497.0,93496.0,0.49355331]
[1745799818021,0.00842351,93497.0,93496.0,0.50055331]
[1745799821050,0.34,93529.0,93502.0,0.01454085]
[1745799821290,0.18992897,93530.0,93507.0,0.01454085]
[1745799821495,0.34,93529.0,93509.0,0.01454085]
[1745799821836,0.34,93529.0,93511.0,0.01454085]
[1745799821984,0.34,93529.0,93512.0,0.10689014]
[1745799822365,0.001,93529.0,93513.0,0.01454085]
[1745799822602,0.001,93529.0,93522.0,0.01454085]
[1745799822771,0.001,93529.0,93524.0,0.01454085]
[1745799823009,0.001,93529.0,93526.0,0.01454085]
[1745799823220,0.002,93529.0,93527.0,0.10689014]
[1745799823398,0.001,93529.0,93527.0,0.10689014]
[1745799823799,0.0008502,93535.0,93527.0,0.10689014]
[1745799824004,0.001,93529.0,93527.0,0.09685921]
[1745799824199,0.001,93529.0,93527.0,0.14283504]
[1745799824483,0.001,93529.0,93527.0,0.14483504]
[1745799824693,0.0008502,93535.0,93527.0,0.14283504]
[1745799824887,0.0008502,93535.0,93527.0,0.14583504]
[1745799825307,0.0008502,93535.0,93527.0,0.09985921]
[1745799825308,0.00622307,93535.0,93527.0,0.09985921]
[1745799825536,0.34,93533.0,93527.0,0.09685921]
[1745799825749,0.34,93531.0,93523.0,0.34835821]
[1745799825938,0.34,93529.0,93528.0,0.12239821]
[1745799826133,0.34,93529.0,93523.0,0.22603386]
[1745799826134,0.00537287,93526.0,93523.0,0.22101787]
[1745799826268,0.34,93524.0,93523.0,0.22101787]
[1745799826622,1.914182,93524.0,93523.0,0.22101787]
[1745799826837,1.919531,93524.0,93523.0,0.22101787]
[1745799827437,1.846738,93524.0,93523.0,0.22101787]
[1745799827642,1.85311087,93524.0,93523.0,0.22101787]
[1745799828012,1.90131087,93524.0,93523.0,0.22101787]
[1745799829616,0.00537287,93498.0,93491.0,0.004]
[1745799829831,2.58014687,93497.0,93496.0,0.00104605]
[1745799830038,2.68703701,93497.0,93496.0,0.00104605]
[1745799830698,2.68703701,93497.0,93487.0,0.2041687]
[1745799830699,0.00537287,93488.0,93487.0,0.2041687]
[1745799830908,0.00537287,93488.0,93487.0,0.18135488]
[1745799831136,0.34537287,93488.0,93487.0,0.18135488]
[1745799831337,0.36515639,93488.0,93487.0,0.18135488]
[1745799831530,1.56552339,93488.0,93487.0,0.18135488]
[1745799831745,1.68941339,93488.0,93487.0,0.18135488]
[1745799831921,1.66917115,93488.0,93487.0,0.17600168]
[1745799832122,1.63228315,93488.0,93487.0,0.17600168]
[1745799832747,1.56847915,93488.0,93487.0,0.17600168]
[1745799832913,1.43245115,93488.0,93487.0,0.17600168]
[1745799833118,1.43986486,93488.0,93487.0,0.17800168]
[1745799833291,1.42008134,93488.0,93487.0,0.17800168]
[1745799833491,0.96338234,93488.0,93487.0,0.18000168]
[1745799833758,0.70022134,93488.0,93487.0,0.19818681]
[1745799833941,0.60720347,93488.0,93487.0,0.18000168]
[1745799834646,0.61257634,93488.0,93487.0,0.18000168]
[1745799835025,0.46890647,93488.0,93487.0,0.18000168]
[1745799835747,0.35730547,93488.0,93487.0,0.18000168]
[1745799835948,0.36267834,93488.0,93487.0,0.18000168]
[1745799836333,0.00537287,93486.0,93485.0,0.001425]
[1745799836508,0.00537287,93486.0,93465.0,0.0141017]
[1745799836509,0.00537287,93478.0,93465.0,0.0141017]
[1745799836711,0.34537287,93476.0,93465.0,0.0141017]
[1745799836918,0.34537287,93476.0,93475.0,1.21144213]
[1745799836919,1.62828687,93476.0,93475.0,1.21144213]
[1745799837113,1.64750758,93476.0,93475.0,1.2039133]
[1745799837338,1.33028558,93476.0,93475.0,1.2039133]
[1745799837540,1.35003695,93476.0,93475.0,1.2039133]
[1745799837739,1.35991263,93476.0,93475.0,1.31080344]
[1745799837944,1.40611263,93476.0,93475.0,1.2039133]
[1745799838145,0.47411363,93476.0,93475.0,1.2039133]
[1745799838304,0.47711363,93476.0,93475.0,1.2039133]
[1745799838503,0.47711363,93476.0,93475.0,1.19320541]
[1745799839145,0.47711363,93476.0,93475.0,1.30009555]
[1745799839434,0.38541363,93476.0,93475.0,1.19320541]
[1745799839835,1.23362176,93476.0,93475.0,1.19320541]
[1745799840046,1.29507635,93476.0,93475.0,1.19320541]
[1745799840421,0.71149548,93476.0,93475.0,1.19320541]
[1745799840625,0.62214535,93476.0,93475.0,1.30009555]
[1745799840831,0.38562248,93476.0,93475.0,1.30009555]
[1745799841038,0.04562248,93476.0,93475.0,1.18517516]
[1745799841242,0.04004076,93476.0,93475.0,1.27921679]
[1745799841619,0.03804076,93476.0,93475.0,1.27921679]
[1745799842070,0.03904076,93476.0,93475.0,1.27921679]
[1745799842276,0.08658877,93476.0,93475.0,1.34942418]
[1745799842972,2.08117064,93476.0,93475.0,1.24253404]
[1745799843190,2.71716464,93476.0,93475.0,1.17232665]
[1745799843393,3.48593764,93476.0,93475.0,1.17232665]